[Event "Early-Titled-Tuesday-Blitz-October-10-2023"]
[Site "Chess.com"]
[Date "2023.10.10"]
[Round "5"]
[White "Hasangatin_Ramil"]
[Black "sergoy"]
[Result "0-1"]
[WhiteElo "2722"]
[BlackElo "3011"]
[TimeControl "180+1"]
[EndTime "8:53:34 PDT"]
[Termination "sergoy won by resignation"]

1. e4 {[%clk 0:03:00.9]} 1... c5 {[%clk 0:02:59.8]} 2. Nf3 {[%clk 0:03:00.6]}
2... d6 {[%clk 0:03:00.3]} 3. d4 {[%clk 0:03:00.5]} 3... cxd4 {[%clk 0:03:01]}
4. Qxd4 {[%clk 0:03:01.3]} 4... Nf6 {[%clk 0:03:00.4]} 5. Bb5+ {[%clk
0:02:59.2]} 5... Nc6 {[%clk 0:02:59.6]} 6. Nc3 {[%clk 0:02:58.2]} 6... Bd7
{[%clk 0:02:45.2]} 7. Bxc6 {[%clk 0:02:54.3]} 7... Bxc6 {[%clk 0:02:46.1]} 8.
Bg5 {[%clk 0:02:54.8]} 8... e6 {[%clk 0:02:46.7]} 9. O-O-O {[%clk 0:02:54.4]}
9... Be7 {[%clk 0:02:47.3]} 10. Rhe1 {[%clk 0:02:54.7]} 10... O-O {[%clk
0:02:46.5]} 11. Qd2 {[%clk 0:02:55.2]} 11... Qa5 {[%clk 0:02:35.3]} 12. Nd4
{[%clk 0:02:49.9]} 12... Rac8 {[%clk 0:02:33.1]} 13. Kb1 {[%clk 0:02:49.7]}
13... Bd7 {[%clk 0:02:28.9]} 14. Nd5 {[%clk 0:02:47.9]} 14... Qd8 {[%clk
0:02:20.5]} 15. Nxe7+ {[%clk 0:02:48.1]} 15... Qxe7 {[%clk 0:02:21.2]} 16. Qf4
{[%clk 0:02:48.6]} 16... h6 {[%clk 0:01:51.8]} 17. Bxf6 {[%clk 0:02:43.1]} 17...
Qxf6 {[%clk 0:01:50.5]} 18. Qxf6 {[%clk 0:02:41.8]} 18... gxf6 {[%clk
0:01:50.3]} 19. Rd3 {[%clk 0:02:39.3]} 19... Rfd8 {[%clk 0:01:46.3]} 20. Red1
{[%clk 0:02:38.7]} 20... Be8 {[%clk 0:01:45.3]} 21. Nb3 {[%clk 0:02:36]} 21...
Bc6 {[%clk 0:01:40.6]} 22. f3 {[%clk 0:02:30.2]} 22... d5 {[%clk 0:01:38.8]} 23.
Na5 {[%clk 0:02:25.6]} 23... Re8 {[%clk 0:01:37.8]} 24. Nxc6 {[%clk 0:02:22.4]}
24... bxc6 {[%clk 0:01:37.8]} 25. Ra3 {[%clk 0:02:22]} 25... Rc7 {[%clk
0:01:36.3]} 26. Ra6 {[%clk 0:02:17.6]} 26... Kf8 {[%clk 0:01:34]} 27. b3 {[%clk
0:02:16.2]} 27... Ke7 {[%clk 0:01:33.8]} 28. Kb2 {[%clk 0:02:12.6]} 28... h5
{[%clk 0:01:33.7]} 29. Ra4 {[%clk 0:01:58.6]} 29... Rg8 {[%clk 0:01:24.9]} 30.
Rd2 {[%clk 0:01:55]} 30... Rg5 {[%clk 0:01:17.3]} 31. Kc1 {[%clk 0:01:27.3]}
31... f5 {[%clk 0:01:14.8]} 32. f4 {[%clk 0:01:12.3]} 32... Rg4 {[%clk
0:01:05.8]} 33. exf5 {[%clk 0:00:44]} 33... exf5 {[%clk 0:01:06.7]} 34. Re2+
{[%clk 0:00:37.4]} 34... Kf6 {[%clk 0:01:06.9]} 35. Kd2 {[%clk 0:00:35.9]} 35...
h4 {[%clk 0:00:58.4]} 36. Ke1 {[%clk 0:00:34.3]} 36... c5 {[%clk 0:00:52]} 37.
Kf2 {[%clk 0:00:34.1]} 37... c4 {[%clk 0:00:52.5]} 38. Ra5 {[%clk 0:00:31.5]}
38... Rxf4+ {[%clk 0:00:50.5]} 39. Ke1 {[%clk 0:00:29.7]} 39... Rd7 {[%clk
0:00:46.4]} 40. Rd2 {[%clk 0:00:24.4]} 40... Re4+ {[%clk 0:00:45.7]} 41. Kf2
{[%clk 0:00:24]} 41... Ke5 {[%clk 0:00:46.2]} 0-1

[Event "Early-Titled-Tuesday-Blitz-October-10-2023"]
[Site "Chess.com"]
[Date "2023.10.10"]
[Round "5"]
[White "RianKapriaga"]
[Black "Sanyura"]
[Result "1-0"]
[WhiteElo "2316"]
[BlackElo "2558"]
[TimeControl "180+1"]
[EndTime "8:53:34 PDT"]
[Termination "RianKapriaga won by resignation"]

1. d4 {[%clk 0:02:56.3]} 1... Nf6 {[%clk 0:02:16.6]} 2. Nf3 {[%clk 0:02:56.3]}
2... g6 {[%clk 0:02:16.8]} 3. c4 {[%clk 0:02:54.3]} 3... d6 {[%clk 0:02:17.7]}
4. Nc3 {[%clk 0:02:51.6]} 4... Bg7 {[%clk 0:02:18.6]} 5. Bg5 {[%clk 0:02:49.6]}
5... O-O {[%clk 0:02:19.5]} 6. e3 {[%clk 0:02:49.4]} 6... Nbd7 {[%clk
0:02:09.9]} 7. Be2 {[%clk 0:02:49.4]} 7... c6 {[%clk 0:02:07.9]} 8. O-O {[%clk
0:02:49.2]} 8... a6 {[%clk 0:02:08.8]} 9. Qc2 {[%clk 0:02:47]} 9... b5 {[%clk
0:02:09.1]} 10. Rad1 {[%clk 0:02:41.8]} 10... Bb7 {[%clk 0:02:09.2]} 11. a3
{[%clk 0:02:30]} 11... bxc4 {[%clk 0:01:58.5]} 12. Bxc4 {[%clk 0:02:26.5]} 12...
c5 {[%clk 0:01:59.4]} 13. d5 {[%clk 0:02:14.6]} 13... a5 {[%clk 0:01:59.6]} 14.
e4 {[%clk 0:02:11.3]} 14... Ba6 {[%clk 0:01:56.2]} 15. Nd2 {[%clk 0:02:05.8]}
15... Qb6 {[%clk 0:01:47.5]} 16. Rfe1 {[%clk 0:01:58.8]} 16... Rfb8 {[%clk
0:01:46.7]} 17. Bxa6 {[%clk 0:01:46.5]} 17... Qxa6 {[%clk 0:01:47.6]} 18. Nf3
{[%clk 0:01:36.8]} 18... a4 {[%clk 0:01:40.3]} 19. e5 {[%clk 0:01:30.3]} 19...
dxe5 {[%clk 0:01:39.5]} 20. Nxe5 {[%clk 0:01:30.2]} 20... Nxe5 {[%clk
0:01:35.3]} 21. Rxe5 {[%clk 0:01:30.7]} 21... Rb7 {[%clk 0:01:30.2]} 22. Rde1
{[%clk 0:01:22.7]} 22... Qc4 {[%clk 0:00:49.9]} 23. Qd2 {[%clk 0:01:11.1]} 23...
Rab8 {[%clk 0:00:45.3]} 24. Rxe7 {[%clk 0:00:43]} 24... Rxb2 {[%clk 0:00:28.2]}
25. Qxb2 {[%clk 0:00:41.7]} 25... Rxb2 {[%clk 0:00:25.8]} 26. Re8+ {[%clk
0:00:40.5]} 26... Nxe8 {[%clk 0:00:25.7]} 27. Rxe8+ {[%clk 0:00:40.3]} 27... Bf8
{[%clk 0:00:24.2]} 28. Bh6 {[%clk 0:00:40.6]} 28... Rb1+ {[%clk 0:00:03.6]} 29.
Nxb1 {[%clk 0:00:37.4]} 29... Qc1+ {[%clk 0:00:04.5]} 30. Bxc1 {[%clk
0:00:35.5]} 1-0

[Event "Early-Titled-Tuesday-Blitz-October-10-2023"]
[Site "Chess.com"]
[Date "2023.10.10"]
[Round "5"]
[White "maximnovik"]
[Black "SirStrateg"]
[Result "0-1"]
[WhiteElo "2438"]
[BlackElo "2585"]
[TimeControl "180+1"]
[EndTime "8:53:35 PDT"]
[Termination "SirStrateg won by resignation"]

1. e4 {[%clk 0:02:05.9]} 1... d6 {[%clk 0:02:59.7]} 2. d4 {[%clk 0:02:05.8]}
2... Nf6 {[%clk 0:03:00.1]} 3. Nc3 {[%clk 0:02:05.7]} 3... c6 {[%clk 0:03:00.6]}
4. f4 {[%clk 0:02:05.1]} 4... Qa5 {[%clk 0:03:00.6]} 5. Bd3 {[%clk 0:02:05.5]}
5... e5 {[%clk 0:03:00.7]} 6. Nf3 {[%clk 0:02:05.8]} 6... exd4 {[%clk 0:03:01]}
7. Nxd4 {[%clk 0:02:05.8]} 7... g6 {[%clk 0:03:01.8]} 8. Nb3 {[%clk 0:02:04.2]}
8... Qc7 {[%clk 0:03:00.8]} 9. Be3 {[%clk 0:02:03.4]} 9... Bg7 {[%clk
0:02:58.4]} 10. Qd2 {[%clk 0:02:03.5]} 10... O-O {[%clk 0:02:51.7]} 11. h3
{[%clk 0:01:59.1]} 11... b5 {[%clk 0:02:47.9]} 12. a3 {[%clk 0:01:50.8]} 12...
a6 {[%clk 0:02:44.1]} 13. g4 {[%clk 0:01:45.2]} 13... Bb7 {[%clk 0:02:43.1]} 14.
O-O-O {[%clk 0:01:38.7]} 14... c5 {[%clk 0:02:42.3]} 15. g5 {[%clk 0:01:35.2]}
15... Nh5 {[%clk 0:02:38.1]} 16. Be2 {[%clk 0:01:22.9]} 16... Ng3 {[%clk
0:02:33.2]} 17. Rhe1 {[%clk 0:01:19.3]} 17... c4 {[%clk 0:02:28.7]} 18. Nd4
{[%clk 0:01:16.4]} 18... Nxe4 {[%clk 0:02:25.3]} 19. Nxe4 {[%clk 0:01:16.2]}
19... Bxe4 {[%clk 0:02:26.2]} 20. Bf3 {[%clk 0:01:10.7]} 20... d5 {[%clk
0:02:13.1]} 21. Bxe4 {[%clk 0:01:06.5]} 21... dxe4 {[%clk 0:02:13.4]} 22. f5
{[%clk 0:01:06.6]} 22... Re8 {[%clk 0:02:07.5]} 23. f6 {[%clk 0:00:56.5]} 23...
Bf8 {[%clk 0:02:06]} 24. Bf4 {[%clk 0:00:55.9]} 24... Qb7 {[%clk 0:02:04.4]} 25.
h4 {[%clk 0:00:53.5]} 25... Nc6 {[%clk 0:02:00.7]} 26. Nxc6 {[%clk 0:00:50.8]}
26... Qxc6 {[%clk 0:02:01.2]} 27. c3 {[%clk 0:00:50.6]} 27... a5 {[%clk
0:01:48.1]} 28. h5 {[%clk 0:00:50.5]} 28... b4 {[%clk 0:01:41.7]} 29. hxg6
{[%clk 0:00:50.5]} 29... fxg6 {[%clk 0:01:41.7]} 30. Qd7 {[%clk 0:00:49]} 30...
Qxd7 {[%clk 0:01:08.9]} 31. Rxd7 {[%clk 0:00:48.4]} 31... Red8 {[%clk 0:01:09]}
32. Red1 {[%clk 0:00:45.2]} 32... Rxd7 {[%clk 0:01:08]} 33. Rxd7 {[%clk
0:00:44.8]} 33... bxa3 {[%clk 0:01:02.7]} 34. Be5 {[%clk 0:00:33.6]} 34... h5
{[%clk 0:00:53.4]} 35. gxh6 {[%clk 0:00:30.3]} 35... a2 {[%clk 0:00:50.6]} 36.
h7+ {[%clk 0:00:22.7]} 36... Kh8 {[%clk 0:00:50.2]} 37. f7+ {[%clk 0:00:17.4]}
37... Kxh7 {[%clk 0:00:50]} 38. Rd1 {[%clk 0:00:14.8]} 38... a1=Q+ {[%clk
0:00:49.9]} 39. Kd2 {[%clk 0:00:14.7]} 39... Rd8+ {[%clk 0:00:48.5]} 0-1

[Event "Early-Titled-Tuesday-Blitz-October-10-2023"]
[Site "Chess.com"]
[Date "2023.10.10"]
[Round "5"]
[White "FGHSMN"]
[Black "combidharma"]
[Result "1-0"]
[WhiteElo "2864"]
[BlackElo "2654"]
[TimeControl "180+1"]
[EndTime "8:53:36 PDT"]
[Termination "FGHSMN won by resignation"]

1. Nf3 {[%clk 0:03:00.9]} 1... Nf6 {[%clk 0:02:51.9]} 2. b3 {[%clk 0:03:01.3]}
2... d5 {[%clk 0:02:46.4]} 3. Bb2 {[%clk 0:03:01.9]} 3... c6 {[%clk 0:02:47.3]}
4. g3 {[%clk 0:03:01.1]} 4... Bf5 {[%clk 0:02:46.1]} 5. Bg2 {[%clk 0:03:01.6]}
5... e6 {[%clk 0:02:46.7]} 6. O-O {[%clk 0:03:02]} 6... Nbd7 {[%clk 0:02:47.1]}
7. c4 {[%clk 0:03:02.4]} 7... Be7 {[%clk 0:02:47.4]} 8. Nc3 {[%clk 0:02:57.8]}
8... O-O {[%clk 0:02:47.1]} 9. Nh4 {[%clk 0:02:53.6]} 9... Bg6 {[%clk 0:02:47]}
10. Nxg6 {[%clk 0:02:53.2]} 10... hxg6 {[%clk 0:02:47.9]} 11. d4 {[%clk
0:02:53.5]} 11... Bb4 {[%clk 0:02:19.4]} 12. e3 {[%clk 0:02:49.8]} 12... Re8
{[%clk 0:02:04.4]} 13. Qc2 {[%clk 0:02:47.9]} 13... Rc8 {[%clk 0:01:59.3]} 14.
a3 {[%clk 0:02:46.5]} 14... Bd6 {[%clk 0:01:44.5]} 15. c5 {[%clk 0:02:46.3]}
15... Be7 {[%clk 0:01:41.7]} 16. b4 {[%clk 0:02:46.9]} 16... Qc7 {[%clk
0:01:30.2]} 17. a4 {[%clk 0:02:46.6]} 17... e5 {[%clk 0:01:29]} 18. b5 {[%clk
0:02:45.5]} 18... e4 {[%clk 0:01:27.6]} 19. a5 {[%clk 0:02:43.4]} 19... a6
{[%clk 0:01:26.7]} 20. bxa6 {[%clk 0:02:39.4]} 20... bxa6 {[%clk 0:01:27.6]} 21.
Na4 {[%clk 0:02:39.7]} 21... Ra8 {[%clk 0:01:17.7]} 22. Bc3 {[%clk 0:02:38.1]}
22... g5 {[%clk 0:01:12.8]} 23. Rab1 {[%clk 0:02:36.7]} 23... Nf8 {[%clk
0:01:05.7]} 24. Rb6 {[%clk 0:02:31.4]} 24... Ra7 {[%clk 0:01:05.3]} 25. Qe2
{[%clk 0:02:29.6]} 25... g4 {[%clk 0:00:59]} 26. Rxa6 {[%clk 0:02:26.6]} 26...
Rea8 {[%clk 0:00:56.6]} 27. Rxa7 {[%clk 0:02:24.1]} 27... Rxa7 {[%clk
0:00:57.5]} 28. Rb1 {[%clk 0:02:22.6]} 28... N8d7 {[%clk 0:00:56.3]} 29. Nb6
{[%clk 0:02:21.9]} 29... Nb8 {[%clk 0:00:54.6]} 30. h3 {[%clk 0:02:20.8]} 30...
gxh3 {[%clk 0:00:54.1]} 31. Bxh3 {[%clk 0:02:21.7]} 31... Bd8 {[%clk 0:00:48.7]}
32. Qb2 {[%clk 0:02:11]} 32... Na6 {[%clk 0:00:47.5]} 33. Na4 {[%clk 0:02:08.9]}
33... Ra8 {[%clk 0:00:45.4]} 34. Qe2 {[%clk 0:01:59.4]} 34... Qa7 {[%clk
0:00:38.8]} 35. Nb6 {[%clk 0:01:58.3]} 35... Rb8 {[%clk 0:00:38.5]} 36. Rb2
{[%clk 0:01:46.2]} 36... Nc7 {[%clk 0:00:37.8]} 37. Nc8 {[%clk 0:01:44.8]} 37...
Rxb2 {[%clk 0:00:31.7]} 38. Qxb2 {[%clk 0:01:45.7]} 38... Qa6 {[%clk 0:00:29.8]}
39. Qb8 {[%clk 0:01:35.6]} 39... Qd3 {[%clk 0:00:16.7]} 40. Nd6 {[%clk
0:01:35.2]} 40... Qd1+ {[%clk 0:00:09.6]} 41. Kh2 {[%clk 0:01:34.8]} 41... Qf3
{[%clk 0:00:09.9]} 42. Qxd8+ {[%clk 0:01:34.4]} 42... Kh7 {[%clk 0:00:10.8]} 43.
Bf5+ {[%clk 0:01:12.8]} 43... g6 {[%clk 0:00:08.4]} 44. Be1 {[%clk 0:01:13.5]}
44... gxf5 {[%clk 0:00:06]} 45. Qxf6 {[%clk 0:01:13.1]} 1-0

[Event "Early-Titled-Tuesday-Blitz-October-10-2023"]
[Site "Chess.com"]
[Date "2023.10.10"]
[Round "5"]
[White "Cheer_Down"]
[Black "GaiozNigalidze"]
[Result "0-1"]
[WhiteElo "2496"]
[BlackElo "2708"]
[TimeControl "180+1"]
[EndTime "8:53:36 PDT"]
[Termination "GaiozNigalidze won by checkmate"]

1. e4 {[%clk 0:03:00.9]} 1... c5 {[%clk 0:02:59.7]} 2. Nf3 {[%clk 0:03:00.3]}
2... d6 {[%clk 0:03:00.3]} 3. d4 {[%clk 0:03:00.2]} 3... cxd4 {[%clk 0:03:00.3]}
4. Nxd4 {[%clk 0:03:01.1]} 4... Nf6 {[%clk 0:03:00.8]} 5. Nc3 {[%clk 0:03:01.3]}
5... a6 {[%clk 0:03:01.4]} 6. Bg5 {[%clk 0:03:00.6]} 6... e6 {[%clk 0:03:01]} 7.
f4 {[%clk 0:03:00.2]} 7... Nbd7 {[%clk 0:02:57.1]} 8. Bc4 {[%clk 0:02:56.5]}
8... Qc7 {[%clk 0:02:51.6]} 9. Qe2 {[%clk 0:02:48]} 9... Be7 {[%clk 0:02:30.2]}
10. Bxe6 {[%clk 0:02:46.7]} 10... fxe6 {[%clk 0:02:29.4]} 11. Nxe6 {[%clk
0:02:46.8]} 11... Qb6 {[%clk 0:02:29.6]} 12. O-O-O {[%clk 0:02:40.3]} 12... Kf7
{[%clk 0:02:14]} 13. Nd5 {[%clk 0:02:24.3]} 13... Nxd5 {[%clk 0:02:05.3]} 14.
exd5 {[%clk 0:02:24.1]} 14... Nf6 {[%clk 0:01:59.5]} 15. Nxg7 {[%clk 0:02:12.7]}
15... Bg4 {[%clk 0:01:52.3]} 16. Qe1 {[%clk 0:02:06.8]} 16... h6 {[%clk
0:01:17.5]} 17. Bh4 {[%clk 0:01:35.5]} 17... Rhg8 {[%clk 0:01:04.3]} 18. h3
{[%clk 0:01:21.7]} 18... Bd7 {[%clk 0:00:34.9]} 19. Ne6 {[%clk 0:01:20.1]} 19...
Rxg2 {[%clk 0:00:34.8]} 20. Qf1 {[%clk 0:00:55.6]} 20... Rag8 {[%clk 0:00:30.5]}
21. Qd3 {[%clk 0:00:45.6]} 21... Qb5 {[%clk 0:00:18.3]} 22. Qf5 {[%clk
0:00:40.5]} 22... Qe2 {[%clk 0:00:18.1]} 23. Rhe1 {[%clk 0:00:36.8]} 23... Qf3
{[%clk 0:00:14.7]} 24. Bxf6 {[%clk 0:00:31.4]} 24... Bxf6 {[%clk 0:00:11.7]} 25.
Ng5+ {[%clk 0:00:29.4]} 25... R8xg5 {[%clk 0:00:08.8]} 26. Qxd7+ {[%clk
0:00:27]} 26... Kg6 {[%clk 0:00:08.1]} 27. fxg5 {[%clk 0:00:26.1]} 27... Rxc2+
{[%clk 0:00:04.3]} 28. Kxc2 {[%clk 0:00:25.5]} 28... Qf2+ {[%clk 0:00:04.6]} 29.
Kb1 {[%clk 0:00:24.3]} 29... Qxb2# {[%clk 0:00:04.4]} 0-1

[Event "Early-Titled-Tuesday-Blitz-October-10-2023"]
[Site "Chess.com"]
[Date "2023.10.10"]
[Round "5"]
[White "Fan_Of_Chucky"]
[Black "mapleaff"]
[Result "1-0"]
[WhiteElo "2537"]
[BlackElo "2376"]
[TimeControl "180+1"]
[EndTime "8:53:40 PDT"]
[Termination "Fan_Of_Chucky won on time"]

1. d4 {[%clk 0:02:57.7]} 1... Nf6 {[%clk 0:02:59]} 2. c4 {[%clk 0:02:57.8]} 2...
e6 {[%clk 0:02:58.9]} 3. Nc3 {[%clk 0:02:55.1]} 3... Bb4 {[%clk 0:02:58.4]} 4.
f3 {[%clk 0:02:55.7]} 4... c5 {[%clk 0:02:34.4]} 5. e4 {[%clk 0:02:52.9]} 5...
cxd4 {[%clk 0:02:33.4]} 6. Qxd4 {[%clk 0:02:51.8]} 6... Nc6 {[%clk 0:02:33.8]}
7. Qe3 {[%clk 0:02:36.1]} 7... O-O {[%clk 0:02:33.4]} 8. Bd3 {[%clk 0:02:33.2]}
8... d5 {[%clk 0:02:32.3]} 9. a3 {[%clk 0:02:21.8]} 9... d4 {[%clk 0:02:22.6]}
10. Qe2 {[%clk 0:02:22.1]} 10... dxc3 {[%clk 0:02:00.5]} 11. axb4 {[%clk
0:02:22.2]} 11... Nxb4 {[%clk 0:02:00.4]} 12. Bb1 {[%clk 0:02:12.6]} 12... cxb2
{[%clk 0:01:12.7]} 13. Bxb2 {[%clk 0:02:11.1]} 13... Qb6 {[%clk 0:00:58.6]} 14.
e5 {[%clk 0:01:49.1]} 14... Nd7 {[%clk 0:00:40.2]} 15. Nh3 {[%clk 0:01:43.3]}
15... Nc5 {[%clk 0:00:35.2]} 16. Nf2 {[%clk 0:01:20]} 16... Nb3 {[%clk
0:00:22.2]} 17. Qe4 {[%clk 0:01:15.3]} 17... g6 {[%clk 0:00:17.5]} 18. h4 {[%clk
0:01:07]} 18... Nxa1 {[%clk 0:00:15.6]} 19. Bxa1 {[%clk 0:01:06.5]} 19... Qa5
{[%clk 0:00:12.9]} 20. Bc3 {[%clk 0:00:56.1]} 20... Qa3 {[%clk 0:00:12.5]} 21.
Qe3 {[%clk 0:00:44.7]} 21... Qb3 {[%clk 0:00:12.1]} 22. O-O {[%clk 0:00:45.3]}
22... Qxc4 {[%clk 0:00:10.2]} 23. Ne4 {[%clk 0:00:43.7]} 23... Nd5 {[%clk
0:00:09.7]} 24. Qh6 {[%clk 0:00:40.9]} 24... Bd7 {[%clk 0:00:06.1]} 25. Rd1
{[%clk 0:00:37.7]} 25... Rfd8 {[%clk 0:00:05]} 26. Rxd5 {[%clk 0:00:23.2]} 26...
Bc6 {[%clk 0:00:01.5]} 27. Nf6+ {[%clk 0:00:22.1]} 1-0

[Event "Early-Titled-Tuesday-Blitz-October-10-2023"]
[Site "Chess.com"]
[Date "2023.10.10"]
[Round "5"]
[White "microbear"]
[Black "Gyulamiryan-koryun"]
[Result "1-0"]
[WhiteElo "2237"]
[BlackElo "2007"]
[TimeControl "180+1"]
[EndTime "8:53:41 PDT"]
[Termination "microbear won on time"]

1. e4 {[%clk 0:02:59.1]} 1... e5 {[%clk 0:02:52.4]} 2. Nf3 {[%clk 0:02:54.9]}
2... Nc6 {[%clk 0:02:52.2]} 3. d4 {[%clk 0:02:55]} 3... exd4 {[%clk 0:02:48.1]}
4. Bc4 {[%clk 0:02:55.3]} 4... Nf6 {[%clk 0:02:47.6]} 5. O-O {[%clk 0:02:44.8]}
5... d6 {[%clk 0:02:29.6]} 6. h3 {[%clk 0:02:41.5]} 6... Be7 {[%clk 0:02:28.7]}
7. Nxd4 {[%clk 0:02:39.8]} 7... Nxd4 {[%clk 0:02:18.4]} 8. Qxd4 {[%clk
0:02:40.7]} 8... O-O {[%clk 0:02:17.5]} 9. Nc3 {[%clk 0:02:39]} 9... c6 {[%clk
0:02:15]} 10. Bf4 {[%clk 0:02:31.5]} 10... b5 {[%clk 0:02:13.3]} 11. Bb3 {[%clk
0:02:25.4]} 11... c5 {[%clk 0:02:07.5]} 12. Qe3 {[%clk 0:02:20.5]} 12... a6
{[%clk 0:01:54.7]} 13. Bd5 {[%clk 0:02:14.7]} 13... Rb8 {[%clk 0:01:50.6]} 14.
a3 {[%clk 0:02:12.7]} 14... b4 {[%clk 0:01:48.2]} 15. axb4 {[%clk 0:02:10.4]}
15... cxb4 {[%clk 0:01:47]} 16. Ne2 {[%clk 0:02:07.4]} 16... Nxd5 {[%clk
0:01:41.5]} 17. exd5 {[%clk 0:02:04.3]} 17... Rb5 {[%clk 0:01:32.5]} 18. Nd4
{[%clk 0:01:50.6]} 18... Rc5 {[%clk 0:01:11.8]} 19. Nc6 {[%clk 0:01:38.8]} 19...
Rxc6 {[%clk 0:01:09.3]} 20. dxc6 {[%clk 0:01:37.9]} 20... Qc7 {[%clk 0:01:09.4]}
21. Rfe1 {[%clk 0:01:32.9]} 21... Bf6 {[%clk 0:01:06.5]} 22. Rad1 {[%clk
0:01:30.9]} 22... Qxc6 {[%clk 0:00:49.3]} 23. Bxd6 {[%clk 0:01:27.4]} 23... Rd8
{[%clk 0:00:44.6]} 24. Be7 {[%clk 0:01:20.7]} 24... Rxd1 {[%clk 0:00:43.5]} 25.
Rxd1 {[%clk 0:01:18.9]} 25... Bxe7 {[%clk 0:00:31.2]} 26. Qxe7 {[%clk
0:01:19.8]} 26... h6 {[%clk 0:00:25.8]} 27. Rd8+ {[%clk 0:01:04.6]} 27... Kh7
{[%clk 0:00:24.8]} 28. Qxf7 {[%clk 0:01:05.2]} 28... Be6 {[%clk 0:00:18.6]} 29.
Qf3 {[%clk 0:00:52.9]} 29... Qxc2 {[%clk 0:00:16.2]} 30. Qd3+ {[%clk 0:00:51.8]}
30... Qxd3 {[%clk 0:00:16.3]} 31. Rxd3 {[%clk 0:00:52.7]} 31... a5 {[%clk
0:00:15.1]} 32. Rd6 {[%clk 0:00:53.3]} 32... Bc4 {[%clk 0:00:13.2]} 33. Rc6
{[%clk 0:00:51.7]} 33... Bg8 {[%clk 0:00:12]} 34. Ra6 {[%clk 0:00:51.4]} 34...
b3 {[%clk 0:00:03.5]} 35. Rxa5 {[%clk 0:00:51.5]} 35... Kg6 {[%clk 0:00:02]} 36.
Rc5 {[%clk 0:00:52.4]} 36... Kf6 {[%clk 0:00:01.4]} 37. Rc3 {[%clk 0:00:53.3]}
37... Ke5 {[%clk 0:00:01]} 38. g3 {[%clk 0:00:54.2]} 38... Kd4 {[%clk
0:00:01.3]} 39. h4 {[%clk 0:00:55.1]} 39... g6 {[%clk 0:00:01.2]} 40. Kh2 {[%clk
0:00:56]} 40... h5 {[%clk 0:00:01]} 41. f4 {[%clk 0:00:56.9]} 1-0

[Event "Early-Titled-Tuesday-Blitz-October-10-2023"]
[Site "Chess.com"]
[Date "2023.10.10"]
[Round "5"]
[White "lolo9292"]
[Black "ChessTankMan"]
[Result "0-1"]
[WhiteElo "2168"]
[BlackElo "2519"]
[TimeControl "180+1"]
[EndTime "8:53:46 PDT"]
[Termination "ChessTankMan won by resignation"]

1. d4 {[%clk 0:03:00.9]} 1... Nf6 {[%clk 0:02:57.2]} 2. Nf3 {[%clk 0:02:54.4]}
2... e6 {[%clk 0:02:55.3]} 3. Bf4 {[%clk 0:02:53.3]} 3... c5 {[%clk 0:02:53.5]}
4. e3 {[%clk 0:02:53.6]} 4... Nc6 {[%clk 0:02:53.7]} 5. c3 {[%clk 0:02:46]} 5...
d5 {[%clk 0:02:51.1]} 6. Nbd2 {[%clk 0:02:45.6]} 6... Bd6 {[%clk 0:02:50.6]} 7.
Bg3 {[%clk 0:02:44.3]} 7... O-O {[%clk 0:02:47.6]} 8. Ne5 {[%clk 0:02:43.4]}
8... Bxe5 {[%clk 0:02:41]} 9. dxe5 {[%clk 0:02:43.2]} 9... Nd7 {[%clk
0:02:41.6]} 10. f4 {[%clk 0:02:42.9]} 10... f6 {[%clk 0:02:39.8]} 11. Nf3 {[%clk
0:02:42.1]} 11... fxe5 {[%clk 0:02:38.1]} 12. Nxe5 {[%clk 0:02:42]} 12... Ndxe5
{[%clk 0:02:37.5]} 13. fxe5 {[%clk 0:02:42.9]} 13... Qg5 {[%clk 0:02:35.9]} 14.
Bf4 {[%clk 0:02:31.6]} 14... Rxf4 {[%clk 0:02:22.2]} 15. exf4 {[%clk 0:02:31.2]}
15... Qxf4 {[%clk 0:02:21.5]} 16. Qe2 {[%clk 0:02:23.6]} 16... Nxe5 {[%clk
0:02:18.6]} 17. g3 {[%clk 0:02:09.6]} 17... Qf5 {[%clk 0:02:05.9]} 18. O-O-O
{[%clk 0:02:03.4]} 18... Bd7 {[%clk 0:02:01.4]} 19. Bg2 {[%clk 0:02:02.1]} 19...
Rf8 {[%clk 0:01:45.6]} 20. Rhf1 {[%clk 0:02:01.4]} 20... Qg5+ {[%clk 0:01:45.4]}
21. Kb1 {[%clk 0:01:59.6]} 21... Rxf1 {[%clk 0:01:38]} 22. Rxf1 {[%clk
0:02:00.5]} 22... a6 {[%clk 0:01:33.3]} 23. Qf2 {[%clk 0:01:45.2]} 23... h6
{[%clk 0:01:28]} 24. h4 {[%clk 0:01:39]} 24... Qg6+ {[%clk 0:01:27.8]} 25. Ka1
{[%clk 0:01:38.4]} 25... Bb5 {[%clk 0:01:28.2]} 26. Rd1 {[%clk 0:01:13.3]} 26...
b6 {[%clk 0:01:24.1]} 27. Bh3 {[%clk 0:00:59]} 27... Ba4 {[%clk 0:01:08.3]} 28.
Rf1 {[%clk 0:00:54.4]} 28... Bd7 {[%clk 0:01:03.4]} 29. Qe3 {[%clk 0:00:50]}
29... Nc4 {[%clk 0:00:59.9]} 30. Qf4 {[%clk 0:00:49.2]} 30... Kh7 {[%clk
0:00:45.8]} 31. Rf2 {[%clk 0:00:45.5]} 31... e5 {[%clk 0:00:41.1]} 32. h5 {[%clk
0:00:33.9]} 32... Qxh5 {[%clk 0:00:24.1]} 33. Bf5+ {[%clk 0:00:33.9]} 33... Bxf5
{[%clk 0:00:23]} 34. Qxf5+ {[%clk 0:00:34.8]} 34... Qxf5 {[%clk 0:00:23.3]} 35.
Rxf5 {[%clk 0:00:35.7]} 35... Kg6 {[%clk 0:00:23.3]} 36. Rf8 {[%clk 0:00:35.5]}
36... e4 {[%clk 0:00:23.8]} 37. Kb1 {[%clk 0:00:34.4]} 37... d4 {[%clk
0:00:23.8]} 38. Kc1 {[%clk 0:00:34.4]} 38... e3 {[%clk 0:00:18.6]} 39. Kd1
{[%clk 0:00:34.4]} 39... d3 {[%clk 0:00:17.6]} 40. Rf4 {[%clk 0:00:33.8]} 40...
Nxb2+ {[%clk 0:00:17.2]} 41. Ke1 {[%clk 0:00:33.4]} 41... d2+ {[%clk 0:00:17.6]}
0-1